[Event "Marshall CC U2400 January 2024"]
[Site "New York"]
[Date "2024.01.20"]
[Round "1.2"]
[White "Jiang, Jason"]
[Black "Colwell, Andrew"]
[Result "1-0"]
[ECO "D35"]
[WhiteElo "1864"]
[BlackElo "1672"]
[Annotator "NA RC"]
[PlyCount "137"]
[EventDate "2024.01.19"]
[EventType "swiss"]
[EventCountry "USA"]
[SourceTitle "playchess.com"]
[Source "ChessBase"]
[SourceQuality "1"]
[TimeControl "5400+30"]

1. c4 {[%emt 0:00:02]} e6 {[%emt 0:00:23]} 2. Nc3 {[%emt 0:01:12]} d5 {[%emt 0:00:09]} 3. cxd5 {[%emt 0:00:40]} exd5 {[%emt 0:00:05]} 4. d4 {[%emt 0:00:07]} c6 {[%emt 0:00:11]} 5. Nf3 {[%emt 0:00:12]} Nf6 {[%emt 0:00:07]} 6. Bg5 {[%emt 0:00:20]} Bd6 {[%emt 0:02:33]} 7. e3 {[%emt 0:02:12]} O-O {[%emt 0:00:32]} 8. Bd3 {[%emt 0:01:36]} Re8 {[%emt 0:00:14]} 9. Qc2 {[%emt 0:02:51]} h6 {[%emt 0:00:06]} 10. Bh4 {[%emt 0:00:10]} a5 {[%emt 0:00:06]} 11. O-O {[%emt 0:01:14]} Na6 {[%emt 0:07:55]} 12. a3 {[%emt 0:02:56]} Bd7 {[%emt 0:03:44]} 13. Bg3 {[%emt 0:12:58]} (13. e4 $16 Be7 14. exd5) 13... Bxg3 {[%emt 0:02:40]} 14. hxg3 {[%emt 0:00:11]} Ng4 {[%emt 0:00:48]} 15. Na4 {[%emt 0:05:58]} b5 {[%emt 0:05:31]} 16. Nc5 {[%emt 0:02:23]} Nxc5 {[%emt 0:00:06]} 17. Qxc5 {[%emt 0:00:36]} a4 {[%emt 0:13:24]} 18. Rac1 {[%emt 0:07:10]} Qe7 {[%emt 0:02:22]} 19. Qxe7 {[%emt 0:03:29]} Rxe7 {[%emt 0:00:05]} 20. Ne1 {[%emt 0:00:40]} Rb8 {[%emt 0:08:32]} 21. Nc2 {[%emt 0:01:11]} g6 {[%emt 0:04:31]} 22. Rfe1 {[%emt 0:05:59]} f5 {[%emt 0:03:35]} 23. f3 {[%emt 0:03:17]} Nf6 {[%emt 0:00:21]} 24. Nb4 {[%emt 0:00:50]} Rb6 {[%emt 0:00:21]} 25. Kf2 {[%emt 0:01:04]} Kg7 {[%emt 0:03:01]} 26. Rc5 {[%emt 0:06:15]} Re6 {[%emt 0:08:08] [#]} 27. b3 {[%emt 0:14:15]} axb3 {[%emt 0:03:16]} 28. Rb1 {[%emt 0:00:28]} Rd6 {[%emt 0:05:01]} (28... Ne8 $11) 29. Rxb3 {[%emt 0:00:56]} Ne8 {[%emt 0:01:39]} 30. Na2 {[%emt 0:09:11]} Nc7 {[%emt 0:03:19]} 31. a4 $14 {[%emt 0:02:41]} Ra6 {[%emt 0:03:51]} 32. Nc3 {[%emt 0:02:08]} Ne6 {[%emt 0:03:51]} 33. axb5 {[%emt 0:00:11]} cxb5 {[%emt 0:06:41]} 34. Rxd5 {[%emt 0:02:15]} Rxd5 {[%emt 0:00:32]} 35. Nxd5 {[%emt 0:00:06]} Ra2+ {[%emt 0:00:08]} 36. Kg1 {[%emt 0:00:23]} Ra1+ {[%emt 0:05:00]} 37. Kh2 {[%emt 0:00:17]} Ra5 {[%emt 0:00:38]} 38. Nb6 {[%emt 0:02:17]} Be8 {[%emt 0:00:27]} 39. d5 {[%emt 0:01:16]} Ra6 {[%emt 0:01:24]} 40. Nc8 {[%emt 0:01:21]} Nc5 {[%emt 0:01:21]} 41. Bxb5 {[%emt 0:01:19]} Ra5 {[%emt 0:00:45]} 42. Rc3 {[%emt 0:00:29]} Rxb5 {[%emt 0:01:58]} 43. Nd6 {[%emt 0:00:09]} Rb8 {[%emt 0:00:26]} 44. Rxc5 {[%emt 0:00:14]} Rd8 {[%emt 0:00:18]} 45. Nc4 {[%emt 0:01:28]} Kf6 {[%emt 0:00:29]} 46. e4 {[%emt 0:00:43]} fxe4 {[%emt 0:00:19]} 47. fxe4 {[%emt 0:00:05]} Ba4 {[%emt 0:00:17]} 48. e5+ {[%emt 0:00:31]} Kf5 {[%emt 0:00:51]} 49. e6 {[%emt 0:00:16]} Kf6 {[%emt 0:00:06]} 50. Nb6 {[%emt 0:02:35]} Bb3 {[%emt 0:00:37]} 51. Rb5 {[%emt 0:00:15]} Ba2 {[%emt 0:00:32]} 52. Nd7+ {[%emt 0:01:04]} Ke7 {[%emt 0:00:21] [#]} 53. Ne5 $1 {[%emt 0:01:05]} Bxd5 {[%emt 0:01:16]} 54. Nxg6+ {[%emt 0:00:17]} Kxe6 $2 {[%emt 0:01:01]} (54... Kd6 55. Nf4 Bc6) 55. Nf4+ {[%emt 0:00:14]} Ke5 {[%emt 0:00:09]} 56. Rxd5+ {[%emt 0:00:17]} Rxd5 {[%emt 0:00:39]} 57. Nxd5 {[%emt 0:00:02]} Kxd5 {[%emt 0:00:06]} 58. g4 {[%emt 0:02:38]} Ke5 $2 {[%emt 0:01:14]} (58... Ke4 $11) 59. Kh3 {[%emt 0:00:21]} Kf6 {[%emt 0:00:56] [#]} 60. Kh4 $1 {[%emt 0:01:02]} Kg6 {[%emt 0:00:45]} 61. g3 {[%emt 0:00:19]} Kh7 {[%emt 0:00:30]} 62. Kh5 {[%emt 0:00:06]} Kg7 {[%emt 0:00:06]} 63. g5 {[%emt 0:00:11]} hxg5 {[%emt 0:00:27]} 64. Kxg5 {[%emt 0:00:05]} Kg8 {[%emt 0:01:09]} 65. Kg6 {[%emt 0:01:03]} Kh8 {[%emt 0:00:29]} 66. g4 {[%emt 0:00:10]} Kg8 {[%emt 0:00:04]} 67. g5 {[%emt 0:00:13]} Kh8 {[%emt 0:00:52]} 68. Kf7 {[%emt 0:00:07]} Kh7 {[%emt 0:00:13]} 69. g6+ {[%emt 0:00:04]} 1-0

[Event "Marshall CC U2400 January 2024"]
[Site "New York"]
[Date "2024.01.20"]
[Round "1.3"]
[White "Bafna, Mihir"]
[Black "Das, Aditeya"]
[Result "1-0"]
[ECO "B26"]
[WhiteElo "1761"]
[BlackElo "1791"]
[Annotator "NA RC"]
[PlyCount "71"]
[EventDate "2024.01.19"]
[EventType "swiss"]
[EventCountry "USA"]
[SourceTitle "playchess.com"]
[Source "ChessBase"]
[SourceQuality "1"]
[TimeControl "5400+30"]

1. e4 {[%emt 1:31:00]} c5 {[%emt 0:13:09]} 2. Nc3 {[%emt 0:00:00]} Nc6 {[%emt 0:00:30]} 3. g3 {[%emt 0:00:00]} g6 {[%emt 0:00:04]} 4. Bg2 {[%emt 0:00:00]} Bg7 {[%emt 0:00:34]} 5. d3 {[%emt 0:00:00]} e6 {[%emt 0:00:08]} 6. Be3 {[%emt 0:00:00]} d6 {[%emt 0:00:09]} 7. Qd2 {[%emt 0:00:00]} Nge7 {[%emt 0:00:06]} 8. Bh6 {[%emt 0:00:00]} O-O {[%emt 0:00:07]} 9. h4 {[%emt 0:00:00]} f5 {[%emt 0:01:45]} 10. h5 {[%emt 0:00:00]} Rf7 {[%emt 0:00:22]} 11. hxg6 {[%emt 0:00:00]} hxg6 {[%emt 0:02:39]} 12. Nf3 {[%emt 0:00:00]} Nd4 {[%emt 0:02:30]} 13. Ng5 {[%emt 0:00:00]} Bxh6 {[%emt 0:00:13]} 14. Rxh6 {[%emt 0:00:00]} Rg7 {[%emt 0:00:10]} 15. O-O-O {[%emt 0:00:00]} Kf8 {[%emt 0:05:31]} 16. Rdh1 {[%emt 0:00:00]} Ng8 {[%emt 0:01:57]} 17. Rh7 {[%emt 0:00:00]} Nf6 {[%emt 0:00:28]} 18. Rxg7 {[%emt 0:00:00]} Kxg7 {[%emt 0:00:04]} 19. exf5 {[%emt 0:00:00]} exf5 {[%emt 0:07:17]} 20. Nd5 {[%emt 0:00:00]} Be6 {[%emt 0:09:51]} 21. Nxf6 {[%emt 0:00:00]} Qxf6 {[%emt 0:00:25]} 22. Rh7+ {[%emt 0:00:00]} Kg8 {[%emt 0:00:19]} 23. Rxb7 {[%emt 0:00:00]} Re8 {[%emt 0:12:29]} 24. Nh7 {[%emt 0:00:00]} Qe5 {[%emt 0:00:44]} 25. f4 {[%emt 0:00:00]} Qh8 {[%emt 0:00:51]} 26. c3 {[%emt 0:00:00]} Bf7 {[%emt 0:04:27]} 27. cxd4 {[%emt 0:00:00]} Qxh7 {[%emt 0:02:54]} 28. Bd5 {[%emt 0:00:00]} Bxd5 {[%emt 0:07:02]} 29. Rxh7 {[%emt 0:00:00]} Kxh7 {[%emt 0:00:06]} 30. dxc5 {[%emt 0:00:00]} Rc8 {[%emt 0:01:48]} 31. b3 {[%emt 0:00:00]} Rxc5+ {[%emt 0:00:34]} 32. Kb2 {[%emt 0:00:00]} a5 {[%emt 0:02:24]} 33. Qe3 {[%emt 0:00:00]} Rc6 {[%emt 0:01:02]} 34. Qa7+ {[%emt 0:00:00]} Kg8 {[%emt 0:00:56]} 35. Qxa5 {[%emt 0:00:00]} Bf7 {[%emt 0:00:22]} 36. Qa8+ {[%emt 0:00:00]} 1-0

[Event "Marshall CC U2400 January 2024"]
[Site "New York"]
[Date "2024.01.20"]
[Round "1.4"]
[White "Klein, Ethan"]
[Black "Wallace, Harper"]
[Result "1-0"]
[ECO "A56"]
[WhiteElo "1923"]
[BlackElo "1588"]
[Annotator "RC"]
[PlyCount "107"]
[EventDate "2024.01.19"]
[EventType "swiss"]
[EventCountry "USA"]
[SourceTitle "playchess.com"]
[Source "ChessBase"]
[SourceQuality "1"]
[TimeControl "5400+30"]

1. d4 {[%emt 0:00:02]} Nf6 {[%emt 0:01:39]} 2. c4 {[%emt 0:00:07]} c5 {[%emt 0:00:24]} 3. d5 {[%emt 0:00:12]} e5 {[%emt 0:00:17]} 4. Nc3 {[%emt 0:00:16]} d6 {[%emt 0:00:04]} 5. e4 {[%emt 0:00:07]} Be7 {[%emt 0:00:05]} 6. Bd3 {[%emt 0:01:56]} Nbd7 {[%emt 0:00:07]} 7. Nge2 {[%emt 0:00:43]} h5 {[%emt 0:00:07]} 8. h4 {[%emt 0:05:19]} Nf8 {[%emt 0:02:17]} 9. Bc2 {[%emt 0:00:34]} Ng6 {[%emt 0:00:28]} 10. Ba4+ {[%emt 0:01:13]} Bd7 {[%emt 0:00:33]} 11. Ng3 {[%emt 0:07:29]} Ng4 {[%emt 0:02:55]} 12. Bxd7+ {[%emt 0:16:28]} Kxd7 {[%emt 0:03:36]} 13. Nxh5 {[%emt 0:04:34]} Nf6 {[%emt 0:08:12]} 14. Nxf6+ {[%emt 0:02:27]} Bxf6 {[%emt 0:00:05]} 15. h5 {[%emt 0:02:21]} Ke8 {[%emt 0:01:26]} 16. g3 {[%emt 0:08:15]} Bg5 {[%emt 0:01:26]} 17. Qg4 {[%emt 0:00:22]} Bxc1 {[%emt 0:00:42]} 18. Rxc1 {[%emt 0:00:07]} Qd7 {[%emt 0:00:08]} 19. Qxd7+ {[%emt 0:04:53]} Kxd7 {[%emt 0:00:05]} 20. Ke2 {[%emt 0:00:12]} Ne7 {[%emt 0:00:03]} 21. f4 {[%emt 0:00:24]} f6 {[%emt 0:00:16]} 22. a3 {[%emt 0:03:21]} Rae8 {[%emt 0:00:05]} 23. f5 {[%emt 0:05:44]} a6 {[%emt 0:00:55]} 24. b4 {[%emt 0:00:36]} b6 {[%emt 0:00:07]} 25. Rb1 {[%emt 0:01:05]} Rb8 {[%emt 0:00:23]} 26. g4 {[%emt 0:01:58]} Kc7 {[%emt 0:00:06]} 27. g5 {[%emt 0:01:46]} Ng8 {[%emt 0:00:22]} 28. Rbg1 {[%emt 0:01:32]} Rh7 {[%emt 0:01:13]} 29. h6 {[%emt 0:09:37]} gxh6 {[%emt 0:02:21]} 30. gxh6 {[%emt 0:04:50]} Kd7 {[%emt 0:01:50]} 31. Rg6 {[%emt 0:05:52]} Rf8 {[%emt 0:00:30]} 32. Na4 {[%emt 0:01:04]} Kc7 {[%emt 0:01:38]} 33. Rhg1 {[%emt 0:03:23]} Ne7 {[%emt 0:00:08]} 34. Rg7 {[%emt 0:00:16]} Rf7 {[%emt 0:00:39]} 35. Rxf7 {[%emt 0:01:47]} Rxf7 {[%emt 0:00:04]} 36. Rg7 {[%emt 0:00:45]} Rxg7 {[%emt 0:00:12]} 37. hxg7 {[%emt 0:00:02]} cxb4 {[%emt 0:02:04]} 38. axb4 {[%emt 0:00:01]} Ng8 {[%emt 0:00:56]} 39. Kf3 {[%emt 0:00:41]} a5 {[%emt 0:01:12]} 40. bxa5 {[%emt 0:00:17]} bxa5 {[%emt 0:00:03]} 41. Kg4 {[%emt 0:00:22]} Kd8 {[%emt 0:00:41]} 42. Kh5 {[%emt 0:00:07]} Ke8 {[%emt 0:02:21]} 43. Kg6 {[%emt 0:00:09]} Ke7 {[%emt 0:00:14]} 44. Kh7 {[%emt 0:00:33]} Kf7 {[%emt 0:00:09]} 45. c5 {[%emt 0:00:29]} dxc5 {[%emt 0:00:05]} 46. Nxc5 {[%emt 0:00:05]} Ne7 {[%emt 0:00:28]} 47. d6 {[%emt 0:00:13]} Ng8 {[%emt 0:00:06]} 48. Na4 {[%emt 0:00:19]} Nh6 {[%emt 0:00:14]} 49. Kxh6 {[%emt 0:00:07]} Kg8 {[%emt 0:00:04]} 50. d7 {[%emt 0:00:07]} Kf7 {[%emt 0:00:02]} 51. g8=Q+ {[%emt 0:00:36]} Kxg8 {[%emt 0:00:02]} 52. d8=Q+ {[%emt 0:00:18]} Kf7 {[%emt 0:00:02]} 53. Qd7+ {[%emt 0:00:14]} Kg8 {[%emt 0:00:02]} 54. Qg7# {[%emt 0:00:37]} 1-0

[Event "Marshall CC U2400 January 2024"]
[Site "New York"]
[Date "2024.01.20"]
[Round "1.5"]
[White "Marchese, Nicolas"]
[Black "Gutnik, Aleksandr"]
[Result "0-1"]
[ECO "C02"]
[WhiteElo "1647"]
[BlackElo "1956"]
[Annotator "NA RC"]
[PlyCount "82"]
[EventDate "2024.01.19"]
[EventType "swiss"]
[EventCountry "USA"]
[SourceTitle "playchess.com"]
[Source "ChessBase"]
[SourceQuality "1"]
[TimeControl "5400+30"]

1. e4 {[%emt 0:00:03]} e6 {[%emt 0:00:09]} 2. d4 {[%emt 0:00:09]} d5 {[%emt 0:00:10]} 3. e5 {[%emt 0:00:08]} c5 {[%emt 0:00:24]} 4. c3 {[%emt 0:00:07]} Qb6 {[%emt 0:00:21]} 5. Nf3 {[%emt 0:00:12]} Bd7 {[%emt 0:00:47]} 6. Be2 {[%emt 0:00:17]} Bb5 {[%emt 0:00:53]} 7. O-O {[%emt 0:10:11]} Bxe2 {[%emt 0:00:41]} 8. Qxe2 {[%emt 0:00:07]} cxd4 {[%emt 0:01:07]} 9. cxd4 {[%emt 0:06:18] 9.Nxd4 injects fresh life into this line.} Nc6 {[%emt 0:02:25]} 10. a3 {[%emt 0:01:15]} Nge7 {[%emt 0:01:17]} 11. b4 {[%emt 0:01:11]} (11. Be3 $11) 11... Nf5 {[%emt 0:01:55]} (11... Nxd4 $15 12. Nxd4 {[%mdl 64] Remove Defender} Qxd4) 12. Bb2 {[%emt 0:06:20] [#]} Be7 $146 {[%emt 0:01:53]} ({Predecessor:} 12... a6 13. Qd3 Be7 14. Nbd2 O-O 15. Nb3 Rac8 16. Nc5 Rc7 17. Rac1 Rfc8 18. Rc2 Na7 {½-½ Haring,F (1742)-Karas,M (2017) SVK-ch op Banska Stiavnica 2013 (5)}) 13. Rd1 {[%emt 0:04:40]} O-O {[%emt 0:01:29]} 14. g4 {[%emt 0:01:15]} (14. Qd3 $11 {feels stronger.}) 14... Nh4 {[%emt 0:01:25]} 15. Nxh4 {[%emt 0:01:20]} Bxh4 {[%emt 0:00:10]} 16. Rd3 {[%emt 0:07:07]} Bg5 {[%emt 0:09:36]} 17. Nd2 {[%emt 0:01:15]} Bxd2 {[%emt 0:00:10]} 18. Qxd2 {[%emt 0:00:08]} a5 {[%emt 0:13:21]} 19. Rh3 {[%emt 0:08:52]} f5 {[%emt 0:03:09]} 20. exf6 {[%emt 0:01:43]} Rxf6 {[%emt 0:00:18]} 21. Qd3 {[%emt 0:00:05]} Rg6 {[%emt 0:01:21]} 22. b5 {[%emt 0:00:06]} Na7 {[%emt 0:02:25]} 23. a4 {[%emt 0:01:59]} Rf8 {[%emt 0:00:42]} 24. Ba3 {[%emt 0:02:30]} Rf7 {[%emt 0:12:03]} 25. Bc5 {[%emt 0:07:16]} Qd8 {[%emt 0:00:42]} 26. Bxa7 {[%emt 0:00:28]} b6 {[%emt 0:00:09]} 27. Bxb6 {[%emt 0:00:25]} Qxb6 {[%emt 0:00:09]} 28. Rg3 {[%emt 0:12:13]} ({White should play} 28. Rc1 $18) 28... Rc7 {[%emt 0:07:05]} (28... Rgf6 $16) 29. Rd1 {[%emt 0:07:03]} (29. g5 $18 {is the precise move to win.}) 29... Rf6 {[%emt 0:00:29]} 30. g5 {[%emt 0:00:28]} Rf5 {[%emt 0:01:17]} 31. Qa3 {[%emt 0:01:32]} ({White has to play} 31. g6 $16) 31... e5 {[%emt 0:03:08]} (31... Rc4 $142) 32. Qe3 $14 {[%emt 0:01:17]} (32. Rf3 $16 Qe6 33. Rxf5 Qxf5 34. Qg3) 32... e4 {[%emt 0:15:37]} 33. Rc1 {[%emt 0:07:11]} Rxc1+ {[%emt 0:01:27]} 34. Qxc1 {[%emt 0:00:05]} Qxd4 {[%emt 0:00:30]} 35. Qc2 {[%emt 0:02:07]} Rf8 {[%emt 0:02:11]} 36. Kg2 {[%emt 0:02:37]} Qe5 {[%emt 0:01:54]} 37. Qd2 {[%emt 0:01:58]} d4 {[%emt 0:01:42]} 38. Qxa5 {[%emt 0:01:31]} e3 {[%emt 0:00:21]} 39. fxe3 {[%emt 0:00:11]} dxe3 {[%emt 0:00:07]} 40. Qe1 {[%emt 0:00:10]} e2 {[%emt 0:01:06]} 41. Rf3 {[%emt 0:01:00]} Qe4 {[%emt 0:00:15]} 0-1

[Event "Marshall CC U2400 January 2024"]
[Site "New York"]
[Date "2024.01.20"]
[Round "2.1"]
[White "Hoffman, Luc"]
[Black "Li, Robert"]
[Result "1-0"]
[ECO "E60"]
[WhiteElo "2068"]
[BlackElo "1732"]
[Annotator "RC"]
[PlyCount "57"]
[EventDate "2024.01.19"]
[EventType "swiss"]
[EventCountry "USA"]
[SourceTitle "playchess.com"]
[Source "ChessBase"]
[SourceQuality "1"]
[TimeControl "5400+30"]

1. Nf3 {[%emt 0:00:03]} Nf6 {[%emt 0:02:31]} 2. e3 {[%emt 0:01:37]} g6 {[%emt 0:00:16]} 3. b3 {[%emt 0:00:23]} Bg7 {[%emt 0:00:06]} 4. Bb2 {[%emt 0:00:06]} d6 {[%emt 0:00:53]} 5. d4 {[%emt 0:00:32]} O-O {[%emt 0:00:26]} 6. c4 {[%emt 0:00:29]} c5 {[%emt 0:02:05]} 7. Be2 {[%emt 0:02:14]} Nfd7 {[%emt 0:07:46]} 8. O-O {[%emt 0:04:00]} Nc6 {[%emt 0:00:16]} 9. Na3 {[%emt 0:03:02]} a6 {[%emt 0:03:54]} 10. Qd2 {[%emt 0:05:31]} Nf6 {[%emt 0:06:43]} 11. Rfd1 {[%emt 0:06:22]} Ne4 {[%emt 0:02:10]} 12. Qc1 {[%emt 0:00:58]} Qa5 {[%emt 0:04:37]} 13. Bd3 {[%emt 0:02:23]} f5 {[%emt 0:03:10]} 14. dxc5 {[%emt 0:01:49]} Bxb2 {[%emt 0:01:29]} 15. Qxb2 {[%emt 0:01:17]} Nxc5 {[%emt 0:00:48]} 16. Bf1 {[%emt 0:02:03]} Rf6 {[%emt 0:08:21]} 17. Nb1 {[%emt 0:06:04]} Ne4 {[%emt 0:02:40]} 18. a3 {[%emt 0:01:58]} b5 {[%emt 0:05:25]} 19. b4 {[%emt 0:01:08]} Qb6 {[%emt 0:02:39]} 20. Nc3 {[%emt 0:00:12]} Nxc3 {[%emt 0:02:31]} 21. Qxc3 {[%emt 0:00:09]} Kg7 {[%emt 0:06:26]} 22. Rac1 {[%emt 0:02:23]} Bb7 {[%emt 0:00:51]} 23. Nd2 {[%emt 0:04:11]} Rc8 {[%emt 0:02:20]} 24. cxb5 {[%emt 0:00:55]} Ne5 {[%emt 0:04:15]} 25. Qd4 {[%emt 0:01:03]} Nd7 {[%emt 0:02:46]} 26. bxa6 {[%emt 0:00:52]} Bxa6 {[%emt 0:03:02]} 27. Qxb6 {[%emt 0:00:17]} Rxc1 {[%emt 0:00:22]} 28. Rxc1 {[%emt 0:00:08]} Nxb6 {[%emt 0:00:07]} 29. Bxa6 {[%emt 0:00:05]} 1-0

[Event "Marshall CC U2400 January 2024"]
[Site "New York"]
[Date "2024.01.20"]
[Round "2.2"]
[White "Stancil, Kimani"]
[Black "Jiang, Jason"]
[Result "0-1"]
[ECO "B70"]
[WhiteElo "1784"]
[BlackElo "1864"]
[Annotator "NA RC"]
[PlyCount "104"]
[EventDate "2024.01.19"]
[EventType "swiss"]
[EventCountry "USA"]
[SourceTitle "playchess.com"]
[Source "ChessBase"]
[SourceQuality "1"]
[TimeControl "5400+30"]

1. e4 {[%emt 0:00:23]} c5 {[%emt 0:04:58]} 2. Nf3 {[%emt 0:00:09]} d6 {[%emt 0:00:07]} 3. d4 {[%emt 0:00:05]} cxd4 {[%emt 0:00:07]} 4. Nxd4 {[%emt 0:00:03]} Nf6 {[%emt 0:00:08]} 5. Nc3 {[%emt 0:00:06]} g6 {[%emt 0:00:11]} 6. Bd3 {[%emt 0:00:10]} Bg7 {[%emt 0:00:11]} 7. O-O {[%emt 0:00:17]} O-O {[%emt 0:02:40]} 8. a4 {[%emt 0:00:04]} Nc6 {[%emt 0:04:48]} 9. Nxc6 {[%emt 0:00:14]} bxc6 {[%emt 0:00:15]} 10. Kh1 {[%emt 0:00:09]} d5 {[%emt 0:05:37]} 11. Qe2 {[%emt 0:02:01]} dxe4 {[%emt 0:07:35]} 12. Nxe4 {[%emt 0:00:10]} Nxe4 {[%emt 0:01:04]} 13. Bxe4 {[%emt 0:00:18]} Qc7 {[%emt 0:13:27]} 14. f4 {[%emt 0:03:26]} Rb8 {[%emt 0:05:37]} 15. c3 {[%emt 0:03:58]} Qa5 {[%emt 0:12:14]} 16. Qc2 {[%emt 0:19:53]} Bf5 {[%emt 0:07:29]} 17. Re1 {[%emt 0:00:38]} Rfd8 {[%emt 0:02:00]} 18. Bxf5 {[%emt 0:02:20]} Qxf5 {[%emt 0:00:20]} 19. Qf2 {[%emt 0:01:12]} Rb7 {[%emt 0:03:39]} 20. Be3 {[%emt 0:00:31]} a5 {[%emt 0:07:51]} 21. Re2 {[%emt 0:00:49]} Rbd7 {[%emt 0:02:44]} 22. Rg1 {[%emt 0:07:59]} Rd1 {[%emt 0:02:16]} 23. Ree1 {[%emt 0:00:14]} Qb1 {[%emt 0:01:14]} 24. Qe2 {[%emt 0:25:22]} Rxe1 {[%emt 0:00:43]} 25. Rxe1 {[%emt 0:01:37]} Qe4 {[%emt 0:01:31]} 26. Bg1 {[%emt 0:04:43]} Qxf4 {[%emt 0:05:28]} 27. Qxe7 {[%emt 0:00:59]} Bf6 {[%emt 0:00:33]} 28. Qe2 {[%emt 0:07:15]} Qxa4 {[%emt 0:02:38]} 29. Bc5 {[%emt 0:01:14]} Kg7 {[%emt 0:01:44]} 30. Rf1 {[%emt 0:00:33]} Rd5 {[%emt 0:01:30]} 31. Be3 {[%emt 0:04:37]} Qh4 {[%emt 0:02:32]} 32. Rf4 {[%emt 0:02:56]} Qh5 {[%emt 0:00:45]} 33. g4 {[%emt 0:01:15]} Qe5 {[%emt 0:00:45]} 34. Qf3 {[%emt 0:01:48]} g5 {[%emt 0:00:31]} 35. Re4 {[%emt 0:05:27]} Rd1+ {[%emt 0:00:24]} 36. Kg2 {[%emt 0:00:13]} Qd5 {[%emt 0:00:24]} 37. h4 {[%emt 0:00:44]} h6 {[%emt 0:00:40]} 38. hxg5 {[%emt 0:00:36]} hxg5 {[%emt 0:00:39]} 39. Ra4 {[%emt 0:03:04]} Qb3 {[%emt 0:01:23]} 40. Rxa5 {[%emt 0:00:36]} Qxb2+ {[%emt 0:00:10]} 41. Qf2 {[%emt 0:00:48]} Qxc3 {[%emt 0:00:21]} 42. Rc5 {[%emt 0:00:08]} Qb4 {[%emt 0:01:18]} 43. Qf3 {[%emt 0:00:30]} Rd3 $19 {[%emt 0:00:25]} 44. Rxc6 {[%emt 0:00:22]} Qb2+ {[%emt 0:00:07]} 45. Qf2 {[%emt 0:00:47]} Qe5 {[%emt 0:00:22]} 46. Rxf6 {[%emt 0:01:53]} Qxf6 {[%emt 0:00:16]} 47. Qxf6+ {[%emt 0:00:17]} Kxf6 {[%emt 0:00:04]} 48. Bc1 {[%emt 0:00:13]} Kg6 {[%emt 0:00:07]} 49. Kf2 {[%emt 0:00:12]} f5 {[%emt 0:00:09]} 50. gxf5+ {[%emt 0:00:04]} Kxf5 {[%emt 0:00:05]} 51. Kg2 {[%emt 0:00:13]} Kg4 {[%emt 0:00:04]} 52. Kf2 {[%emt 0:00:11]} Rc3 {[%emt 0:00:06]} 0-1

[Event "Marshall CC U2400 January 2024"]
[Site "New York"]
[Date "2024.01.20"]
[Round "2.3"]
[White "Bafna, Mihir"]
[Black "Klein, Ethan"]
[Result "1/2-1/2"]
[ECO "C00"]
[WhiteElo "1761"]
[BlackElo "1923"]
[Annotator "RC"]
[PlyCount "119"]
[EventDate "2024.01.19"]
[EventType "swiss"]
[EventCountry "USA"]
[SourceTitle "playchess.com"]
[Source "ChessBase"]
[SourceQuality "1"]
[TimeControl "5400+30"]

1. e4 {[%emt 0:00:30]} e6 {[%emt 0:01:25]} 2. Qe2 {[%emt 0:01:26]} Be7 {[%emt 0:02:53]} 3. g3 {[%emt 0:00:15]} d5 {[%emt 0:00:11]} 4. e5 {[%emt 0:00:07]} c5 {[%emt 0:01:52]} 5. Qg4 {[%emt 0:01:13]} Bf8 {[%emt 0:02:05]} 6. c3 {[%emt 0:02:49]} Nc6 {[%emt 0:05:12]} 7. f4 {[%emt 0:00:22]} Bd7 {[%emt 0:02:23]} 8. Na3 {[%emt 0:01:07]} Nh6 {[%emt 0:01:24]} 9. Qe2 {[%emt 0:00:19]} Nf5 {[%emt 0:01:49]} 10. Nf3 {[%emt 0:00:36]} Be7 {[%emt 0:02:00]} 11. Bg2 {[%emt 0:01:17]} Qc7 {[%emt 0:03:17]} 12. O-O {[%emt 0:02:20]} a6 {[%emt 0:03:52]} 13. Nc2 {[%emt 0:02:50]} g6 {[%emt 0:04:22]} 14. d3 {[%emt 0:04:07]} h5 {[%emt 0:09:31]} 15. a3 {[%emt 0:03:24]} h4 {[%emt 0:01:27]} 16. g4 {[%emt 0:00:27]} h3 {[%emt 0:00:36]} 17. Bh1 {[%emt 0:01:08]} Nh4 {[%emt 0:00:35]} 18. Be3 {[%emt 0:02:43]} Na7 {[%emt 0:11:28]} 19. b4 {[%emt 0:06:35]} Ba4 {[%emt 0:01:17]} 20. bxc5 {[%emt 0:05:27]} Bxc5 {[%emt 0:03:16]} 21. Ncd4 {[%emt 0:01:23]} Nb5 {[%emt 0:02:53]} 22. Qf2 {[%emt 0:02:30]} Nxf3+ {[%emt 0:03:22]} 23. Bxf3 {[%emt 0:00:47]} Qb6 {[%emt 0:04:40]} 24. Rab1 {[%emt 0:04:16]} Qa7 {[%emt 0:01:05]} 25. Nxb5 {[%emt 0:03:28]} Bxe3 {[%emt 0:01:40]} 26. Nxa7 {[%emt 0:00:10]} Bxf2+ {[%emt 0:00:09]} 27. Kxf2 {[%emt 0:01:47]} Rxa7 {[%emt 0:00:03]} 28. Rb6 {[%emt 0:00:34]} Bc2 {[%emt 0:09:00]} 29. Ke3 {[%emt 0:00:54]} Kd7 {[%emt 0:02:04]} 30. c4 {[%emt 0:05:39]} dxc4 {[%emt 0:01:13]} 31. dxc4 {[%emt 0:00:33]} Kc7 {[%emt 0:00:30]} 32. Rb2 {[%emt 0:01:16]} Ba4 {[%emt 0:00:11]} 33. c5 {[%emt 0:00:42]} Rd8 {[%emt 0:01:37]} 34. Rb4 {[%emt 0:01:14]} Bb5 {[%emt 0:04:32]} 35. Be2 {[%emt 0:02:12]} Bxe2 {[%emt 0:02:59]} 36. Kxe2 {[%emt 0:00:02]} Rd5 {[%emt 0:00:24]} 37. Rc1 {[%emt 0:00:17]} Ra8 {[%emt 0:00:40]} 38. Rb3 {[%emt 0:01:12]} Rad8 {[%emt 0:02:04]} 39. Rc2 {[%emt 0:01:10]} Rd4 {[%emt 0:01:02]} 40. Ke3 {[%emt 0:00:45]} Rd1 {[%emt 0:00:39]} 41. Rcb2 {[%emt 0:00:45]} Rb8 {[%emt 0:01:22]} 42. Kf3 {[%emt 0:04:22]} Rd5 {[%emt 0:02:26]} 43. Kg3 {[%emt 0:00:40]} Rxc5 {[%emt 0:00:33]} 44. Kxh3 {[%emt 0:00:02]} b5 {[%emt 0:01:45]} 45. Kh4 {[%emt 0:00:46]} Rd8 {[%emt 0:01:03]} 46. Kg5 {[%emt 0:00:28]} Rd4 {[%emt 0:00:58]} 47. Rf3 {[%emt 0:01:15]} Rcc4 {[%emt 0:00:19]} 48. h4 {[%emt 0:00:29]} Kd7 {[%emt 0:01:21]} 49. h5 {[%emt 0:00:21]} gxh5 {[%emt 0:00:09]} 50. gxh5 {[%emt 0:00:04]} Ke7 {[%emt 0:00:18]} 51. h6 {[%emt 0:01:16]} Kf8 {[%emt 0:00:41]} 52. Rh2 {[%emt 0:01:10]} Kg8 {[%emt 0:00:11]} 53. h7+ {[%emt 0:00:24]} Kh8 {[%emt 0:00:03]} 54. Rh4 {[%emt 0:01:08]} a5 {[%emt 0:03:40]} 55. Rg3 {[%emt 0:01:12]} b4 {[%emt 0:00:19]} 56. Kh6 {[%emt 0:00:32]} Rd8 {[%emt 0:00:06]} 57. Rhg4 {[%emt 0:00:56]} Rcc8 {[%emt 0:00:04]} 58. axb4 {[%emt 0:02:14]} axb4 {[%emt 0:00:01]} 59. Rb3 {[%emt 0:00:54]} Rc3 {[%emt 0:02:00]} 60. Rg8+ {[%emt 0:00:56]} 1/2-1/2